bitfinex-derivatives/quotes_BNBF0:USTF0_20230831
["timestamp","ask_amount","ask_price","bid_price","bid_amount"]
[1693470971215,0.07575675,223.51,223.28,0.20523802]
[1693470971412,0.07575675,223.51,223.29,0.20523802]
[1693470971615,0.07575675,223.51,223.28,0.20523802]
[1693470971809,0.07575675,223.51,223.29,0.20523802]
[1693470972009,0.07575675,223.51,223.28,0.20523802]
[1693470972210,0.07575675,223.51,223.29,0.20523802]
[1693470972416,0.07575675,223.51,223.3,0.20523802]
[1693470972613,0.07575675,223.51,223.31,0.20523802]
[1693470972811,0.07575675,223.51,223.32,0.20523802]
[1693470973117,0.07575675,223.51,223.33,0.20523802]
[1693470973412,0.07575675,223.51,223.34,0.20523802]
[1693470973619,0.07575675,223.51,223.28,0.20523802]
[1693470973812,0.07575675,223.51,223.29,0.20523802]
[1693470974012,0.07575675,223.51,223.28,0.20523802]
[1693470974217,0.07575675,223.51,223.29,0.20523802]
[1693470974417,0.07575675,223.51,223.28,0.20523802]
[1693470974616,0.07575675,223.51,223.29,0.20523802]
[1693470974816,0.07575675,223.51,223.3,0.20523802]
[1693470975019,0.07575675,223.51,223.31,0.20523802]
[1693470975220,0.07575675,223.51,223.32,0.20523802]
[1693470975520,0.07575675,223.51,223.33,0.20523802]
[1693470975718,0.07575675,223.51,223.28,0.20523802]
[1693470975918,0.07575675,223.51,223.29,0.20523802]
[1693470976219,0.07575675,223.51,223.3,0.20523802]
[1693470976420,0.07575675,223.51,223.28,0.20523802]
[1693470976614,0.07575675,223.51,223.29,0.20523802]
[1693470976813,0.07575675,223.51,223.3,0.20523802]
[1693470977118,0.07575675,223.51,223.31,0.20523802]
[1693470977319,0.07575675,223.51,223.32,0.20523802]
[1693470977523,0.07575675,223.51,223.33,0.20523802]
[1693470977720,0.07575675,223.51,223.28,0.20523802]
[1693470977920,0.07575675,223.51,223.29,0.20523802]
[1693470978220,0.07575675,223.51,223.3,0.20523802]
[1693470978414,0.07575675,223.51,223.31,0.20523802]
[1693470978619,0.07575675,223.51,223.32,0.20523802]
[1693470978819,0.07575675,223.51,223.33,0.20523802]
[1693470979021,0.07575675,223.51,223.34,0.20523802]
[1693470979317,0.07575675,223.51,223.35,0.20523802]
[1693470979523,0.07575675,223.51,223.28,0.20523802]
[1693470979722,0.07575675,223.51,223.29,0.20502742]
[1693470979924,0.07575675,223.51,223.3,0.20502742]
[1693470980123,0.07575675,223.51,223.31,0.20502742]
[1693470980317,0.07575675,223.51,223.28,0.20502742]
[1693470980521,0.07575675,223.51,223.29,0.20502742]
[1693470980722,0.07575675,223.51,223.28,0.20502742]
[1693470981018,0.07575675,223.51,223.29,0.20502742]
[1693470981218,0.07575675,223.51,223.3,0.20502742]
[1693470981417,0.07575675,223.51,223.31,0.20502742]
[1693470981619,0.07575675,223.51,223.28,0.20502742]
[1693470981824,0.07575675,223.51,223.29,0.20502742]
[1693470982020,0.07575675,223.51,223.3,0.20502742]
[1693470982223,0.07575675,223.51,223.31,0.20502742]
[1693470982523,0.07575675,223.51,223.32,0.20502742]
[1693470982719,0.07575675,223.51,223.27,0.07334281]
[1693470982720,0.07575675,223.51,223.28,0.20502742]
[1693470983023,0.07575675,223.51,223.29,0.20502742]
[1693470983224,0.07575675,223.51,223.28,0.20502742]
[1693470983418,0.07575675,223.51,223.29,0.20502742]
[1693470983621,0.07575675,223.51,223.3,0.20502742]
[1693470983924,0.07575675,223.51,223.31,0.20502742]
[1693470984124,0.07575675,223.51,223.32,0.20502742]
[1693470984424,0.07575675,223.51,223.33,0.20502742]
[1693470984726,0.07575675,223.51,223.34,0.20502742]
[1693470984919,0.07575675,223.51,223.28,0.20502742]
[1693470985123,0.07575675,223.51,223.29,0.20502742]
[1693470985324,0.07575675,223.51,223.3,0.20502742]
[1693470985527,0.07575675,223.51,223.28,0.20502742]
[1693470985823,0.07575675,223.51,223.29,0.20502742]
[1693470986022,0.07575675,223.51,223.3,0.20502742]
[1693470986227,0.07575675,223.51,223.29,0.20502742]
[1693470986422,0.07575675,223.51,223.3,0.20502742]
[1693470986617,0.07575675,223.51,223.28,0.07334281]
[1693470986618,0.07575675,223.51,223.31,0.20502742]
[1693470986818,0.07575675,223.51,223.29,0.20502742]
[1693470987019,0.07575675,223.51,223.3,0.20502742]
[1693470987220,0.07575675,223.51,223.31,0.20502742]
[1693470987425,0.07575675,223.51,223.29,0.20502742]
[1693470987627,0.07575675,223.51,223.3,0.20502742]
[1693470987928,0.07575675,223.51,223.31,0.20502742]
[1693470991030,0.07575675,223.51,223.31,0.27837023]
[1693470991229,0.07575675,223.51,223.32,0.20502742]
[1693470992929,0.07575675,223.51,223.32,0.27837023]
[1693470993130,0.07575675,223.51,223.33,0.20502742]
[1693470993929,0.07575675,223.51,223.33,0.27837023]
[1693470994130,0.07575675,223.51,223.34,0.20502742]
[1693470995031,0.07575675,223.51,223.34,0.27837023]
[1693470995231,0.07575675,223.51,223.35,0.20502742]
[1693471015046,0.07575675,223.51,223.35,0.27837023]
[1693471015245,0.07575675,223.51,223.36,0.20502742]
[1693471019744,0.07575675,223.51,223.36,0.27837023]
[1693471020046,0.07575675,223.51,223.37,0.20502742]
[1693471020249,0.07575675,223.51,223.36,0.07334281]
[1693471020443,0.07575675,223.51,223.37,0.20498328]
[1693471029059,0.07575675,223.51,223.37,0.27832609]
[1693471029258,0.07575675,223.51,223.37,0.07334281]
[1693471031056,0.07575675,223.51,223.36,0.07334281]
[1693471031256,0.07575675,223.51,223.37,0.20498168]
[1693471035160,0.07575675,223.51,223.37,0.27832449]
[1693471035360,0.07575675,223.51,223.36,0.07334281]
[1693471035560,0.07575675,223.51,223.37,0.20497852]
[1693471058180,0.07575675,223.51,223.37,0.27832133]
[1693471058472,0.07575675,223.51,223.37,0.07334281]
[1693471101613,0.07575675,223.51,223.36,0.07334281]
[1693471101814,0.07575675,223.51,223.37,0.20490453]
[1693471129941,0.07575675,223.51,223.37,0.27824734]
[1693471130137,0.07575675,223.51,223.36,0.07334281]
[1693471130341,0.07575675,223.51,223.37,0.20481363]
[1693471134847,0.07575675,223.51,223.37,0.27815644]
[1693471135144,0.07575675,223.51,223.38,0.20481363]
[1693471137648,0.07575675,223.51,223.36,0.07334281]
[1693471137849,0.07575675,223.51,223.37,0.20481428]
[1693471144556,0.07575675,223.51,223.37,0.27815709]
[1693471144755,0.07575675,223.51,223.38,0.20481428]
[1693471145053,0.07575675,223.51,223.36,0.07334281]
[1693471145254,0.07575675,223.51,223.37,0.20482471]
[1693471148158,0.07575675,223.51,223.37,0.27816752]
[1693471148357,0.07575675,223.51,223.38,0.20482471]
[1693471151663,0.07575675,223.51,223.36,0.07334281]
[1693471151962,0.07575675,223.51,223.37,0.20480239]
[1693471168484,0.07575675,223.51,223.35,0.07334281]
[1693471168681,0.07575675,223.51,223.36,0.20485095]
[1693471192496,0.07575675,223.51,223.36,0.27817723]
[1693471192698,0.07575675,223.51,223.37,0.20485095]
[1693471192998,0.07575675,223.51,223.35,0.07332628]
[1693471193198,0.07575675,223.51,223.36,0.20486844]
[1693471193590,0.07575675,223.51,223.36,0.27819472]
[1693471193797,0.07575675,223.51,223.36,0.07332628]
[1693471196693,0.07575675,223.51,223.35,0.07332628]
[1693471196899,0.07575675,223.51,223.36,0.20487032]
[1693471198802,0.07575675,223.51,223.34,0.07332628]
[1693471199006,0.07575675,223.51,223.35,0.20491964]
[1693471201804,0.07575675,223.51,223.35,0.27824592]
[1693471202005,0.07575675,223.51,223.36,0.20491964]
[1693471202205,0.07575675,223.51,223.35,0.07332628]
[1693471202406,0.07575675,223.51,223.36,0.20491184]
[1693471202905,0.07575675,223.51,223.34,0.07332628]
[1693471203106,0.07575675,223.51,223.35,0.20491335]
[1693471204206,0.07575675,223.51,223.35,0.27823963]
[1693471204407,0.07575675,223.51,223.36,0.20491335]
[1693471205004,0.07575675,223.51,223.34,0.07332628]
[1693471205204,0.07575675,223.51,223.35,0.20490792]
[1693471229625,0.07575675,223.51,223.35,0.2782342]
[1693471229824,0.07575675,223.51,223.36,0.20490792]
[1693471248637,0.07575675,223.51,223.36,0.2782342]
[1693471248832,0.07575675,223.51,223.36,0.07332628]
[1693471249038,0.07575675,223.51,223.37,0.20487372]
[1693471251740,0.07575675,223.51,223.36,0.20487372]
[1693471251940,0.07575675,223.51,223.37,0.20487183]
[1693471252140,0.07575675,223.51,223.35,0.07332628]
[1693471252141,0.07575675,223.51,223.36,0.20487183]
[1693471252341,0.07575675,223.51,223.37,0.20487181]
[1693471252543,0.07575675,223.51,223.35,0.07332628]
[1693471252736,0.07575675,223.51,223.36,0.20487156]
[1693471278756,0.07575675,223.51,223.36,0.27819784]
[1693471279051,0.07575675,223.51,223.37,0.20487156]
[1693471279456,0.07575675,223.51,223.36,0.20487156]
[1693471279755,0.07575675,223.51,223.37,0.20498146]
[1693471317488,0.07575675,223.51,223.36,0.07332628]
[1693471324497,0.07575675,223.51,223.35,0.07332628]
[1693471324698,0.07575675,223.51,223.36,0.20499225]
[1693471325693,0.07575675,223.51,223.36,0.27831853]
[1693471325895,0.07575675,223.51,223.37,0.20499225]
[1693471326199,0.07575675,223.51,223.29,0.14665257]
[1693471326200,0.07575675,223.51,223.35,0.07332628]
[1693471326400,0.07575675,223.51,223.36,0.20498581]
[1693471332497,0.07575675,223.51,223.35,0.07332628]
[1693471332702,0.07575675,223.51,223.36,0.20499445]
[1693471334199,0.07575675,223.51,223.35,0.07332628]
[1693471334405,0.07575675,223.51,223.36,0.20499217]
[1693471334803,0.07575675,223.51,223.35,0.27831845]
[1693471335005,0.07575675,223.51,223.36,0.20498966]
[1693471337606,0.07575675,223.51,223.34,0.07332628]
[1693471337806,0.07575675,223.51,223.35,0.20499205]
[1693471359422,0.073374,223.5,223.3,0.07332628]
[1693471359627,0.073374,223.49,223.29,0.07332628]
[1693471359815,0.073374,223.49,223.3,0.20523816]
[1693471360020,0.14913075,223.51,223.3,0.20523816]
[1693471360215,0.14913075,223.51,223.27,0.07332628]
[1693471360418,0.07575675,223.51,223.28,0.2052377]
[1693471361122,0.07575675,223.51,223.27,0.2052377]
[1693471361421,0.07575675,223.51,223.28,0.2052377]
[1693471361620,0.07575675,223.51,223.27,0.2052377]
[1693471361817,0.07575675,223.51,223.28,0.2052377]
[1693471362018,0.07575675,223.51,223.29,0.2052377]
[1693471362217,0.07575675,223.51,223.26,0.2052377]
[1693471362418,0.07575675,223.51,223.27,0.2052377]
[1693471362618,0.07575675,223.51,223.28,0.2052377]
[1693471362817,0.07575675,223.51,223.26,0.2052377]
[1693471363020,0.07575675,223.51,223.27,0.2052377]
[1693471363222,0.07575675,223.51,223.28,0.2052377]
[1693471363422,0.07575675,223.51,223.29,0.2052377]
[1693471363622,0.07575675,223.51,223.3,0.2052377]
[1693471363822,0.07575675,223.51,223.25,0.2052377]
[1693471364124,0.07575675,223.51,223.26,0.20523643]
[1693471364324,0.07575675,223.51,223.27,0.20523643]
[1693471364524,0.07575675,223.51,223.28,0.20523643]
[1693471364728,0.07575675,223.51,223.29,0.20523643]
[1693471365023,0.07575675,223.51,223.23,0.07332628]
[1693471365223,0.07575675,223.51,223.24,0.20523917]
[1693471366519,0.07575675,223.51,223.25,0.20523917]
[1693471366718,0.07575675,223.51,223.26,0.20523917]
[1693471367017,0.07575675,223.51,223.22,0.07332628]
[1693471367018,0.07575675,223.51,223.27,0.20523917]
[1693471367222,0.07575675,223.51,223.23,0.20523917]
[1693471367422,0.07575675,223.51,223.24,0.20523917]
[1693471367625,0.07575675,223.51,223.23,0.20523917]
[1693471367817,0.07575675,223.51,223.24,0.20523917]
[1693471368019,0.07575675,223.51,223.25,0.20523917]
[1693471368223,0.07575675,223.51,223.22,0.20523917]
[1693471368526,0.07575675,223.51,223.23,0.20523917]
[1693471368718,0.07575675,223.51,223.24,0.20523917]
[1693471368923,0.07575675,223.51,223.25,0.20523917]
[1693471369123,0.07575675,223.51,223.22,0.20523917]
[1693471369319,0.07575675,223.51,223.26,0.20523917]
[1693471369517,0.07575675,223.51,223.27,0.20523917]
[1693471369718,0.07575675,223.51,223.28,0.20523917]
[1693471369923,0.07575675,223.51,223.22,0.20523917]
[1693471370223,0.07575675,223.51,223.23,0.20523917]
[1693471370423,0.07575675,223.51,223.24,0.20523917]
[1693471370726,0.07575675,223.51,223.25,0.20523917]
[1693471370919,0.07575675,223.51,223.22,0.20523917]
[1693471371122,0.07575675,223.51,223.23,0.20523917]
[1693471371323,0.07575675,223.51,223.24,0.20523917]
[1693471371523,0.07575675,223.51,223.25,0.20523917]
[1693471371724,0.07575675,223.51,223.21,0.20523917]
[1693471371925,0.07575675,223.51,223.22,0.20523917]
[1693471372224,0.07575675,223.51,223.23,0.20523917]
[1693471372421,0.07575675,223.51,223.24,0.20523917]
[1693471372625,0.07575675,223.51,223.21,0.20523917]
[1693471372827,0.07575675,223.51,223.22,0.20523917]
[1693471373129,0.07575675,223.51,223.23,0.20523917]
[1693471373330,0.07575675,223.51,223.24,0.20523917]
[1693471373621,0.07575675,223.51,223.25,0.20523917]
[1693471373827,0.07575675,223.51,223.26,0.20523917]
[1693471374027,0.07575675,223.51,223.21,0.20523917]
[1693471374325,0.07575675,223.51,223.22,0.20523917]
[1693471374529,0.07575675,223.51,223.23,0.20523917]
[1693471374728,0.07575675,223.51,223.21,0.20523917]
[1693471374930,0.07575675,223.51,223.22,0.20523917]
[1693471375124,0.07575675,223.51,223.23,0.20523917]
[1693471375328,0.07575675,223.51,223.21,0.20523917]
[1693471375527,0.07575675,223.51,223.22,0.20523917]
[1693471375724,0.07575675,223.51,223.21,0.20523917]
[1693471375924,0.07575675,223.51,223.22,0.20523917]
[1693471376124,0.07575675,223.51,223.21,0.20523917]
[1693471376327,0.07575675,223.51,223.22,0.20523917]
[1693471376526,0.07575675,223.51,223.21,0.20523917]
[1693471376729,0.07575675,223.51,223.22,0.20523917]
[1693471376923,0.07575675,223.51,223.2,0.07332628]
[1693471376924,0.07575675,223.51,223.23,0.20523917]
[1693471377126,0.07575675,223.51,223.24,0.20523917]
[1693471377330,0.07575675,223.51,223.21,0.20523917]
[1693471377530,0.07575675,223.51,223.22,0.20523917]
[1693471377731,0.07575675,223.51,223.23,0.20523917]
[1693471377930,0.07575675,223.51,223.24,0.20523917]
[1693471378131,0.07575675,223.51,223.25,0.20523917]
[1693471378328,0.07575675,223.51,223.26,0.20523917]
[1693471378528,0.07575675,223.51,223.21,0.20523917]
[1693471378725,0.07575675,223.51,223.22,0.20523917]
[1693471378927,0.07575675,223.51,223.2,0.27856545]
[1693471379127,0.07575675,223.51,223.21,0.20523917]
[1693471386734,0.07575675,223.51,223.21,0.27856545]
[1693471386929,0.07575675,223.51,223.22,0.20523917]
[1693471388832,0.07575675,223.51,223.22,0.27856545]
[1693471389035,0.07575675,223.51,223.23,0.20523917]
[1693471390937,0.07575675,223.51,223.23,0.27856545]
[1693471391236,0.07575675,223.51,223.24,0.20523917]
[1693471391932,0.14913075,223.51,223.24,0.27856545]
[1693471392137,0.14913075,223.51,223.25,0.20523917]
[1693471392733,0.073374,223.5,223.25,0.27856545]
[1693471392934,0.073374,223.5,223.26,0.20523917]
[1693471393834,0.073374,223.48,223.27,0.07332628]
[1693471394033,0.073374,223.48,223.28,0.20523917]
[1693471400843,0.073374,223.48,223.28,0.27856545]
[1693471401037,0.073374,223.48,223.28,0.07332628]
[1693471401642,0.073374,223.48,223.27,0.07332628]
[1693471401941,0.073374,223.48,223.28,0.27858871]
[1693471402344,0.073374,223.48,223.28,0.07332628]
[1693471414350,0.073374,223.48,223.29,0.20526133]
[1693471435261,0.073374,223.48,223.28,0.07332628]
[1693471436361,0.073374,223.48,223.29,0.20525865]
[1693471436561,0.073374,223.48,223.28,0.07332628]
[1693471437361,0.073374,223.48,223.29,0.20525796]
[1693471441567,0.073374,223.49,223.29,0.20525796]
[1693471441763,0.073374,223.48,223.29,0.20525796]
[1693471441963,0.073374,223.49,223.29,0.27858424]
[1693471442162,0.073374,223.49,223.28,0.07332628]
[1693471442367,0.073374,223.49,223.29,0.20523839]
[1693471443967,0.073374,223.49,223.29,0.27856467]
[1693471444167,0.073374,223.49,223.29,0.07332628]
[1693471445470,0.073374,223.49,223.3,0.20523533]
[1693471445668,0.073374,223.49,223.29,0.07332628]
[1693471446269,0.073374,223.49,223.28,0.07332628]
[1693471446569,0.073374,223.49,223.29,0.2785643]
[1693471446770,0.073374,223.49,223.3,0.20523802]
[1693471447468,0.073374,223.49,223.29,0.20523802]
[1693471447663,0.073374,223.49,223.3,0.20523834]
[1693471447868,0.073374,223.49,223.28,0.07332628]
[1693471448064,0.073374,223.49,223.29,0.20523815]
[1693471452973,0.073374,223.5,223.29,0.27856443]
[1693471453173,0.073374,223.5,223.3,0.20523815]
[1693471454369,0.073374,223.5,223.28,0.07332628]
[1693471454573,0.073374,223.5,223.29,0.20522872]
[1693471473388,0.073374,223.49,223.29,0.278555]
[1693471473589,0.073374,223.49,223.3,0.20522872]
[1693471476890,0.073374,223.49,223.28,0.07332628]
[1693471477089,0.073374,223.49,223.29,0.20522962]
[1693471499414,0.073374,223.48,223.29,0.20522962]
[1693471501511,0.073374,223.49,223.29,0.20522962]
[1693471502212,0.073374,223.48,223.29,0.20522962]
[1693471502612,0.073374,223.49,223.29,0.20522962]
[1693471502911,0.073374,223.48,223.29,0.20522962]
[1693471503806,0.22250475,223.51,223.29,0.20522962]
[1693471503807,0.073374,223.49,223.29,0.20522962]
[1693471504311,0.073374,223.48,223.29,0.20522962]
[1693471504815,0.073374,223.49,223.29,0.20522962]
[1693471510515,0.073374,223.48,223.29,0.20522962]
[1693471510720,0.073374,223.49,223.29,0.20522962]
[1693471513521,0.073374,223.48,223.29,0.20522962]
[1693471514322,0.073374,223.49,223.29,0.20522962]
[1693471514522,0.073374,223.48,223.29,0.20522962]
[1693471515823,0.22250475,223.51,223.29,0.20522962]
[1693471515824,0.07575675,223.51,223.29,0.20522962]
[1693471516027,0.07335231,223.48,223.28,0.07340659]
[1693471516322,0.07335231,223.48,223.29,0.20523114]
[1693471517627,0.07335231,223.49,223.29,0.20523114]
[1693471521327,0.07335231,223.48,223.29,0.20523114]
[1693471525228,0.07335231,223.49,223.29,0.20523114]
[1693471525729,0.07335231,223.48,223.29,0.20523114]
[1693471529432,0.07335231,223.49,223.29,0.27863773]
[1693471529632,0.07335231,223.48,223.29,0.07340659]
[1693471531735,0.07335231,223.48,223.28,0.07340659]
[1693471531936,0.07335231,223.48,223.29,0.205224]
[1693471533934,0.07335231,223.49,223.29,0.27863059]
[1693471534137,0.07335231,223.49,223.3,0.205224]
[1693471534339,0.07335231,223.49,223.29,0.07340659]
[1693471537042,0.07334936,223.49,223.29,0.07341486]
[1693471539239,0.07334936,223.49,223.28,0.07341486]
[1693471539433,0.07334936,223.49,223.29,0.2052203]
[1693471539937,0.07334936,223.48,223.29,0.2052203]
[1693471546050,0.07334936,223.49,223.29,0.27863516]
[1693471546249,0.07334936,223.49,223.3,0.2052203]
[1693471546646,0.07334936,223.49,223.28,0.07341486]
[1693471546947,0.07334936,223.49,223.29,0.2052204]
[1693471550450,0.07334936,223.49,223.29,0.27863526]
[1693471550746,0.07334936,223.49,223.05,0.97886481]
[1693471550747,0.07575675,223.51,223.3,0.2052204]
[1693471550950,0.07334503,223.49,223.29,0.07341265]
[1693471551152,0.07334503,223.49,223.3,0.20521395]
[1693471554856,0.07334503,223.49,223.29,0.07341265]
[1693471555057,0.07334503,223.49,223.3,0.20520572]
[1693471565866,0.07334503,223.48,223.28,0.07341265]
[1693471566058,0.07334503,223.48,223.29,0.20524057]
[1693471570167,0.07334503,223.49,223.29,0.20524057]
[1693471570366,0.07334503,223.48,223.29,0.20524057]
[1693471571068,0.07334503,223.49,223.29,0.20524057]
[1693471571661,0.07334503,223.48,223.29,0.20524057]
[1693471572769,0.07334503,223.49,223.29,0.20524057]
[1693471595994,0.07334503,223.48,223.29,0.20524057]
[1693471598993,0.07334503,223.48,223.28,0.20524057]
[1693471599197,0.07334503,223.48,223.29,0.2052477]
[1693471599498,0.07334503,223.48,223.27,0.07341265]
[1693471599698,0.07334503,223.48,223.28,0.20524639]
[1693471600800,0.07334503,223.48,223.28,0.27865904]
[1693471600996,0.07334503,223.48,223.29,0.20524639]
[1693471602800,0.07334503,223.48,223.27,0.07341265]
[1693471603001,0.07334503,223.47,223.28,0.20527223]
[1693471603702,0.07334503,223.48,223.28,0.20527223]
[1693471618310,0.07334503,223.49,223.28,0.20527223]
[1693471620613,0.07334503,223.48,223.28,0.20527223]
[1693471620815,0.07334503,223.49,223.28,0.20527223]
[1693471627020,0.07334503,223.48,223.28,0.20527223]
[1693471627315,0.07334503,223.49,223.28,0.20527223]
[1693471627515,0.07334503,223.48,223.28,0.20527223]
[1693471630121,0.07334503,223.48,223.28,0.27868488]
[1693471630316,0.07334503,223.48,223.29,0.20527223]
[1693471630921,0.07575675,223.51,223.34,0.07341265]
[1693471631123,0.07575675,223.51,223.35,0.20527223]
[1693471631623,0.07575675,223.51,223.36,0.20527223]
[1693471631823,0.07575675,223.51,223.32,0.07341265]
[1693471632122,0.07575675,223.51,223.33,0.20498231]
[1693471632323,0.07575675,223.51,223.32,0.20498231]
[1693471632523,0.07575675,223.51,223.33,0.20498231]
[1693471632721,0.07575675,223.51,223.31,0.20498231]
[1693471632918,0.07575675,223.51,223.32,0.20498231]
[1693471633724,0.07575675,223.51,223.33,0.20498231]
[1693471634023,0.07575675,223.51,223.34,0.20498231]
[1693471634224,0.07575675,223.51,223.35,0.20498231]
[1693471634418,0.07575675,223.51,223.36,0.20498231]
[1693471634623,0.07575675,223.51,223.29,0.07341265]
[1693471634826,0.07575675,223.51,223.3,0.20499266]
[1693471635718,0.07575675,223.51,223.31,0.20499266]
[1693471635920,0.07575675,223.51,223.32,0.20499266]
[1693471636118,0.07575675,223.51,223.33,0.20499266]
[1693471636322,0.07575675,223.51,223.34,0.20499266]
[1693471636521,0.07575675,223.51,223.35,0.20499266]
[1693471636718,0.07575675,223.51,223.36,0.20499266]
[1693471636918,0.07575675,223.51,223.28,0.07341265]
[1693471637224,0.07575675,223.51,223.29,0.20498962]
[1693471637625,0.07575675,223.51,223.28,0.20498962]
[1693471637829,0.07575675,223.51,223.29,0.20498962]
[1693471638026,0.07575675,223.51,223.3,0.20498962]
[1693471638219,0.07575675,223.51,223.28,0.20498962]
[1693471638420,0.07575675,223.51,223.29,0.20498962]
[1693471638619,0.07575675,223.51,223.3,0.20498962]
[1693471638820,0.07575675,223.51,223.28,0.20498962]
[1693471639021,0.07575675,223.51,223.29,0.20498962]
[1693471639324,0.07575675,223.51,223.3,0.20498962]
[1693471639524,0.07575675,223.51,223.31,0.20498962]
[1693471639725,0.07575675,223.51,223.27,0.20498962]
[1693471639921,0.07575675,223.51,223.28,0.20498962]
[1693471640227,0.07575675,223.51,223.29,0.20498962]
[1693471640429,0.07575675,223.51,223.3,0.20498962]
[1693471640628,0.07575675,223.51,223.27,0.20498962]
[1693471640826,0.07575675,223.51,223.28,0.20498962]
[1693471641022,0.07575675,223.51,223.29,0.20498962]
[1693471641225,0.07575675,223.51,223.3,0.20498962]
[1693471641427,0.07575675,223.51,223.31,0.20498962]
[1693471641622,0.07575675,223.51,223.27,0.20498962]
[1693471641821,0.07575675,223.51,223.28,0.20498962]
[1693471642026,0.07575675,223.51,223.29,0.20498962]
[1693471642321,0.07575675,223.51,223.3,0.20498962]
[1693471642526,0.07575675,223.51,223.31,0.20498962]
[1693471642727,0.07575675,223.51,223.32,0.20498962]
[1693471642923,0.07575675,223.51,223.27,0.20498962]
[1693471643125,0.07575675,223.51,223.28,0.20498962]
[1693471643324,0.07575675,223.51,223.27,0.20498962]
[1693471643530,0.07575675,223.51,223.28,0.20498962]
[1693471643722,0.07575675,223.51,223.29,0.20498962]
[1693471643923,0.07575675,223.51,223.3,0.20498962]
[1693471644123,0.07575675,223.51,223.31,0.20498962]
[1693471644432,0.07575675,223.51,223.32,0.20498962]
[1693471644728,0.07575675,223.51,223.33,0.20498962]
[1693471644928,0.07575675,223.51,223.26,0.20498962]
[1693471645129,0.07575675,223.51,223.27,0.20498962]
[1693471645329,0.07575675,223.51,223.26,0.20498962]
[1693471645531,0.07575675,223.51,223.27,0.20498962]
[1693471645724,0.07575675,223.51,223.26,0.20498962]
[1693471645925,0.07575675,223.51,223.27,0.20498962]
[1693471646130,0.07575675,223.51,223.28,0.20498962]
[1693471646326,0.07575675,223.51,223.26,0.20498962]
[1693471646530,0.07575675,223.51,223.27,0.20498962]
[1693471646830,0.07575675,223.51,223.28,0.20498962]
[1693471647028,0.07575675,223.51,223.25,0.07341265]
[1693471647029,0.07575675,223.51,223.29,0.20498962]
[1693471647332,0.07575675,223.51,223.3,0.20498962]
[1693471647534,0.07575675,223.51,223.31,0.20498962]
[1693471647833,0.07575675,223.51,223.32,0.20498962]
[1693471648031,0.07575675,223.51,223.33,0.20498962]
[1693471648225,0.07575675,223.51,223.34,0.20498962]
[1693471648433,0.07575675,223.51,223.35,0.20498962]
[1693471648629,0.07575675,223.51,223.25,0.07341265]
[1693471648829,0.07575675,223.51,223.26,0.20497837]
[1693471652837,0.07575675,223.51,223.26,0.27839102]
[1693471653036,0.07575675,223.51,223.27,0.20497837]
[1693471660238,0.07575675,223.51,223.27,0.27839102]
[1693471660436,0.07575675,223.51,223.28,0.20497837]
[1693471660638,0.07575675,223.51,223.28,0.27839102]
[1693471660838,0.07575675,223.51,223.29,0.20497837]
[1693471662539,0.07575675,223.51,223.29,0.27839102]
[1693471662741,0.07575675,223.51,223.3,0.20497837]
[1693471663344,0.07575675,223.51,223.3,0.27839102]
[1693471663542,0.07575675,223.51,223.31,0.20497837]
[1693471664439,0.07575675,223.51,223.31,0.27839102]
[1693471664642,0.07575675,223.51,223.32,0.20497837]
[1693471665345,0.07575675,223.51,223.34,0.07341265]
[1693471665542,0.07575675,223.51,223.35,0.20497837]
[1693471679754,0.07575675,223.51,223.35,0.27839102]
[1693471679958,0.07575675,223.51,223.36,0.20497837]
[1693471701969,0.07575675,223.51,223.35,0.07341265]
[1693471702173,0.07575675,223.51,223.36,0.20500241]
[1693471703375,0.07575675,223.51,223.34,0.07341265]
[1693471703576,0.07575675,223.51,223.35,0.20501338]
[1693471704278,0.07575675,223.51,223.36,0.20501338]
[1693471704475,0.07575675,223.51,223.35,0.27839513]
[1693471704678,0.07575675,223.51,223.34,0.07338175]
[1693471704870,0.07575675,223.51,223.35,0.20501081]
[1693471721585,0.07575675,223.51,223.35,0.27839256]
[1693471721885,0.07575675,223.51,223.36,0.20501081]
[1693471722186,0.07575675,223.51,223.34,0.07338175]
[1693471722386,0.07575675,223.51,223.35,0.27838456]
[1693471722587,0.07575675,223.51,223.36,0.20500281]
[1693471786437,0.07575675,223.51,223.4,0.07338175]
[1693471786641,0.07575675,223.51,223.42,0.07338175]
[1693471786840,0.07575675,223.51,223.43,0.20500281]
[1693471787242,0.07575675,223.51,223.44,0.20500281]
[1693471787542,0.07575675,223.51,223.4,0.07338175]
[1693471787743,0.07575675,223.51,223.41,0.2046549]
[1693471788137,0.07575675,223.51,223.42,0.2046549]
[1693471788443,0.07575675,223.51,223.43,0.2046549]
[1693471788643,0.07575675,223.51,223.44,0.2046549]
[1693471788845,0.07575675,223.51,223.37,0.07338175]
[1693471789143,0.07575675,223.51,223.38,0.20463948]
[1693471790243,0.07575675,223.51,223.39,0.20463948]
[1693471790444,0.07575675,223.51,223.4,0.20463948]
[1693471790743,0.07575675,223.51,223.41,0.20463948]
[1693471790939,0.07575675,223.51,223.37,0.20463948]
[1693471791142,0.07575675,223.51,223.38,0.20463948]
[1693471791344,0.07575675,223.51,223.39,0.20463948]
[1693471791544,0.07575675,223.51,223.4,0.20463948]